Workbook

Sheet Resumen PIFE
A2: PIFES 2025 - RESUMEN - MEMORIA - PRESUPUESTO
A4: ENTIDAD SOLICITANTE | C4: CIF | E4: Nº CENSO ENTIDAD SOLICITANTE | G4: Nª CENSO ENTIDAD IMPARTICIÓN | J4: A RELLENAR POR LA ENTIDAD | N4: PRESENCIAL | O4: 1
A5: LOCALIDAD IMPARTICIÓN | C5: TIPO/ZONA PIFE | E5: FAMILIA PROFESIONAL | G5: =+IF(H5<=15,"Nº PARTICIPANTES", "NÚMERO MÁXIMO 15 PARTICIPANTES") -> Nº PARTICIPANTES | J5: CAMPOS CALCULADOS O COMPLETADOS POR EL SNE-NL | L5: TELEFORMACIÓN | M5: 2
A6: MÓDULO ECONÓMICO MEDIO FORMACIÓN | B6: =+IF(OR(H5="",F21=""),"",H21/F21/H5) ->  | C6: TOTAL SUBVENCIÓN SOLICITADA | D6: =+H21+C25+G25+C29+F29+K29 -> 0 | E6: PUNTUACIÓN | F6: =+SUM(C35+G35+L35+E39+K39+P39+B43+D43+H43)-N43 -> 0 | G6: ¿ESTÁ DE ACUERDO CON LA PUNTUACIÓN? | I6: =+IF(OR(D4="",H6=""),"MARQUE SI ESTÁ DE ACUERDO CON LA PUNTUACIÓN OBTENIDA","") -> MARQUE SI ESTÁ DE ACUERDO CON LA PUNTUACIÓN OBTENIDA | J6: POSIBLE ERROR | L6: MIXTA | M6: 3
A7: =+IF(B8="","ESCRIBA LA DENOMINACIÓN DEL PROGRAMA INTEGRADO DE FORMACIÓN Y EMPLEO (PIFE)","") -> ESCRIBA LA DENOMINACIÓN DEL PROGRAMA INTEGRADO DE FORMACIÓN Y EMPLEO (PIFE)
A8: DENOMINACIÓN PIFE
A9: =+IF(B10="","DEFINA EL PERFIL PROFESIONAL AL QUE SE PRETENDE FORMAR CON ESTE PIFE","") -> DEFINA EL PERFIL PROFESIONAL AL QUE SE PRETENDE FORMAR CON ESTE PIFE
A10: DESCRIPCIÓN PIFE
A12: FORMACIÓN TÉCNICA
A13: CÓDIGO ESPECIALIDAD | B13: DENOMINACIÓN ESPECIALIDAD | C13: CÓDIGO MÓDULO | D13: DENOMINACIÓN MÓDULO | E13: FAMILIA PROFESIONAL | F13: HORAS | G13: MÓDULO | H13: COSTE
E14: =LEFT(A14,3) ->  | F14: 300 | G14: =IFERROR(IF(A14="","",VLOOKUP(E14,Hoja1!$E$4:$F$29,2,FALSE)),"Revisar código especialidad") ->  | H14: =IFERROR(IF(G14="","",G14*F14*$H$5),"") -> 
G15: =IFERROR(IF(A15="","",VLOOKUP(E15,Hoja1!$E$4:$F$29,2,FALSE)),"Revisar código especialidad") ->  | H15: =IFERROR(IF(G15="","",G15*F15*$H$5),"") -> 
G16: =IFERROR(IF(A16="","",VLOOKUP(E16,Hoja1!$E$4:$F$29,2,FALSE)),"Revisar código especialidad") -> 
G17: =IFERROR(IF(A17="","",VLOOKUP(E17,Hoja1!$E$4:$F$29,2,FALSE)),"Revisar código especialidad") -> 
G18: =IFERROR(IF(A18="","",VLOOKUP(E18,Hoja1!$E$4:$F$29,2,FALSE)),"Revisar código especialidad") -> 
G19: =IFERROR(IF(A19="","",VLOOKUP(E19,Hoja1!$E$4:$F$29,2,FALSE)),"Revisar código especialidad") -> 
G20: =IFERROR(IF(A20="","",VLOOKUP(E20,Hoja1!$E$4:$F$29,2,FALSE)),"Revisar código especialidad") -> 
D21: =+IF(OR(H5="",F21=""),"",IF(AND(D5=Hoja1!C17,F21>360),"MÁXIMO 360 HORAS",IF(AND(D5<>Hoja1!C17,F21>300),"MÁXIMO 300 HORAS",""))) ->  | E21: HORAS FORMACIÓN TÉCNICA | F21: =IF(F14="","",SUM(F14:F20)) -> 300 | G21: SUBVENCIÓN SOLICITADA | H21: =IF(H5="",0,SUM(H14:H20)) -> 0
A23: FORMACIÓN EN TRANSFORMACIÓN DIGITAL, SOSTENIBILIDAD E IGUALDAD | D23: DESARROLLO DE COMPETENCIAS TRANSVERSALES
A24: PRECIO HORA | B24: HORAS | C24: SUBVENCIÓN SOLICITADA | D24: PRECIO HORA PRESENCIAL | E24: HORAS MÁXIMAS GRUPO | F24: HORAS SOLICITADAS GRUPO | G24: SUBVENCIÓN SOLICITADA
A25: =IF(OR(H5="",B6=""),0,B6) -> 0 | B25: =+IF(H5="","",IF(F21<100,5,IF(F21>=100,10))) ->  | C25: =+IF(H5="",0,B25*H5*A25) -> 0 | D25: =+Hoja1!F28 -> 9.88 | E25: =+IF(F21="","",IF(F21<100,16*H5,IF(AND(F21>=100,F21<=200),32*H5,IF(F21>200,40*H5)))) -> 0 | G25: =+IF(H5="",0,F25*D25) -> 0
F26: =+IF(H5="","",IF(F25>E25,"SUPERADO HORAS MÁXIMAS","")) -> 
A27: GESTIÓN INSERCIÓN Y CONTRATOS | D27: EMPLEO | G27: ACOMPAÑAMIENTO
A28: PRECIO HORA | B28: HORAS SOLICITADAS PARTICIPANTE | C28: SUBVENCIÓN SOLICITADA | D28: SUBVENCIÓN MÁXIMA GRUPO | E28: SUBVENCIÓN SOLICITADA GRUPO | F28: SUBVENCIÓN SOLICITADA | G28: PRECIO HORA | H28: HORAS MÁXIMAS GRUPO/MES | I28: HORAS SOLICITADAS GRUPO/MES | J28: TOTAL MESES | K28: SUBVENCIÓN SOLICITADA
A29: 22 | C29: =+IF(H5="",0,A29*B29*H5) -> 0 | D29: =+IF(H5="","",H5*4500) ->  | F29: =+IF(H5="",0,E29) -> 0 | G29: 22 | H29: =+IF(H5="","",H5*5) ->  | J29: =IF(H5="","",IF(F21="","",(F21+B25+(F25/H5))/100)+3) ->  | K29: =IF(OR(H5="",I29="",0),,G29*I29*J29) -> 0
B30: =+IF(B29="","",IF(OR(B29<1,B29>6),"ENTRE 1 Y 6 HORAS","")) ->  | E30: =IF(E29>D29,"SUPERADA SUBVENCIÓN MÁXIMA","") ->  | I30: =+IF(H5="","",IF(I29>H29,"SUPERADO HORAS MÁXIMAS","")) -> 
A31: VALORACIÓN (HASTA 130 PUNTOS)
A33: A) PUNTUACIÓN OBTENIDA EN LAS ENCUESTAS DEL SERVICIO NAVARRO DE EMPLEO-NAFAR LANSARE (15) | D33: B) SOLVENCIA FINANCIERA (10) | H33: C) ÍNDICE DE INSERCIÓN LABORAL (15)
A34: CENTRO NUEVO | B34: PUNTUACIÓN ENCUESTAS | C34: PUNTOS | D34: VOLUMEN NEGOCIO | E34: SUBVENCIONES | F34: % | G34: PUNTOS | H34: CENTRO NUEVO | I34: ALUMNADO 75% | J34: ALUMNADO INSERTADO | K34: ÍNDICE INSERCIÓN | L34: PUNTOS
A35: =IFERROR(IF($D$4="","",VLOOKUP($D$4,Hoja1!$I$4:'Hoja1'!$K$19,3,FALSE)),"SÍ") ->  | B35: =IFERROR(IF(A35="","",VLOOKUP(D4,Hoja1!$I$4:$J$18,2,FALSE)),Hoja1!J19) ->  | C35: =IF(A35="",0,IF(A35="SÍ",Hoja1!J22,IF(AND(A35="NO",B35>=3,B35<=4),(B35-3)*15,IF(AND(A35="NO",B35<3),0,IF(AND(A35="NO",B35>4),15))))) -> 0 | F35: =IF(OR(D35="",D35=0),"",+E35/D35) ->  | G35: =+IF(F35>50%,0,IF(F35=50%,1,IF(AND(F35<50%,F35>=10%),((((50%-F35)*0.225))*100)+1,IF(F35<10%,10)))) -> 0 | H35: =IFERROR(IF($D$4="","",VLOOKUP($D$4,Hoja1!$I$4:'Hoja1'!$K$19,3,FALSE)),"SÍ") ->  | I35: =IFERROR(IF(H35="","",VLOOKUP(D4,Hoja1!$I$4:$T$18,4,FALSE)),Hoja1!L19) ->  | J35: =IFERROR(IF(H35="","",VLOOKUP(D4,Hoja1!$I$4:$T$18,5,FALSE)),Hoja1!M19) ->  | K35: =IF(H35="","",IF(H35="SÍ",0%,IF(AND(H35="NO",I35=""),0,IF(AND(H35="NO",J35/I35<=100%),J35/I35,IF(AND(H35="NO",J35/I35>100%),100%))))) ->  | L35: =+IF(K35="",0,IF(AND(H35="SÍ",K35=0%),Hoja1!M23,IF(K35<10%,0,IF(K35=10%,2,IF(AND(K35>10%,K35<=90%),((((K35-10%)*13/80))*100)+2,IF(K35>90%,15)))))) -> 0
A37: D) CONTRATOS DE FORMACIÓN EN ALTERNANCIA (20) | F37: E) IGUALDAD (5) | L37: F) EFICACIA EN LA GESTIÓN DE LA SUBVENCIÓN (5)
A38: CENTRO NUEVO | B38: PERSONAS CONCEDIDAS POR TRES MESES | C38: MESES CONTRATOS FORMACIÓN EN ALTERNANCIA | D38: PORCENTAJE | E38: PUNTOS | F38: CENTRO NUEVO | G38: PLAN DE IGUALDAD VERIFICADO | H38: ¿TIENE OBLIGACIÓN PLAN DE IGUALDAD? | I38: PLAN DE IGUALDAD REGISTRADO | J38: CERTIFICADO IGUALDAD | K38: PUNTOS | L38: CENTRO NUEVO | M38: SUBVENCIÓN CONCEDIDA | N38: SUBVENCIÓN ABONADA | O38: % EJECUCIÓN | P38: PUNTOS
A39: =IFERROR(IF($D$4="","",VLOOKUP($D$4,Hoja1!$I$4:'Hoja1'!$K$19,3,FALSE)),"SÍ") ->  | B39: =IFERROR(IF(A39="","",VLOOKUP(D4,Hoja1!$I$4:$P$18,7,FALSE)),Hoja1!N19) ->  | C39: =IFERROR(IF(A39="","",VLOOKUP(D4,Hoja1!$I$4:$P$18,8,FALSE)),Hoja1!P19) ->  | D39: =IF(A39="","",IF(A39="SÍ",0%,C39/B39)) ->  | E39: =+IF(D39="",0,IF(AND(A39="SÍ",D39=0%),Hoja1!P23,IF(D39=0,0,IF(D39<10%,0,IF(D39=10%,1,IF(AND(D39>=10%,D39<=90%),((((D39-10%)*19/80))*100)+1,IF(D39>90%,20))))))) -> 0 | F39: =IFERROR(IF($D$4="","",VLOOKUP($D$4,Hoja1!$I$4:'Hoja1'!$K$19,3,FALSE)),"SÍ") ->  | G39: =IFERROR(IF(D4="","",VLOOKUP(D4,Hoja1!$I$4:$U$18,13,FALSE)),"") ->  | K39: =IF(AND(G39="",I39="",J39=""),0,IF(AND(H39="NO",G39="SÍ"),5,IF(AND(H39="NO",I39="SÍ"),5,IF(AND(H39="SÍ",G39="SÍ",J39="SÍ"),5,IF(AND(H39="SÍ",I39="SÍ",J39="SÍ"),5,0))))) -> 0 | L39: =IFERROR(IF($D$4="","",VLOOKUP($D$4,Hoja1!$I$4:'Hoja1'!$K$19,3,FALSE)),"SÍ") ->  | M39: =IFERROR(IF(L39="","",VLOOKUP(D4,Hoja1!$I$4:$Q$18,9,FALSE)),0) ->  | N39: =IFERROR(IF(L39="","",VLOOKUP(D4,Hoja1!$I$4:$R$18,10,FALSE)),0) ->  | O39: =IF(L39="","",IF(L39="SÍ",0%,N39/M39)) ->  | P39: =+IF(O39="",0,IF(O39>=90%,5,0)) -> 0
A41: G) COMPROMISO DE CONTRATACIÓN ADICIONAL (20) | C41: H) CONTRATACIÓN A JORNADA COMPLETA Y POR TIEMPO INDEFINIDO O CONVERSIÓN DE LA CONTRATACIÓN TEMPORAL EN CONTRATACIÓN A JORNADA COMPLETA Y POR TIEMPO INDEFINIDO (40) | J41: INEJECUCIÓN (-10 puntos)
A42: NÚMERO | B42: PUNTOS | C42: MUJERES FAMILIAS INFRARREPRESENTADAS | D42: PUNTOS | E42: HOMBRES | F42: MUJERES | G42: PUNTOS | H42: TOTAL PUNTOS | J42: CENTRO NUEVO | K42: HORAS CONCEDIDAS | L42: HORAS EJECUTADAS | M42: % INEJECUCIÓN | N42: PUNTOS A DESCONTAR
B43: =+IF(A43*4>20,20,A43*4) -> 0 | D43: =+IF(OR(F5=Hoja1!A6,F5=Hoja1!A10,F5=Hoja1!A11,F5=Hoja1!A12,F5=Hoja1!A13,F5=Hoja1!A18,F5=Hoja1!A20,F5=Hoja1!A21,F5=Hoja1!A28),C43*5,0) -> 0 | G43: =+IF(D43=0,SUM(E43*2,F43*10/3),E43*2) -> 0 | H43: =+IF(SUM(D43,G43)>40,40,SUM(D43,G43)) -> 0 | J43: =IFERROR(IF($D$4="","",VLOOKUP($D$4,Hoja1!$I$4:'Hoja1'!$K$19,3,FALSE)),"SÍ") ->  | K43: =IFERROR(IF(J43="","",VLOOKUP(D4,Hoja1!$I$4:$T$18,11,FALSE)),Hoja1!S19) ->  | L43: =IFERROR(IF(K43="","",VLOOKUP(D4,Hoja1!$I$4:$T$18,12,FALSE)),Hoja1!T19) ->  | M43: =+IF(J43="","",IF(J43="SÍ",0%,IF(AND(J43="NO",L43=0),0%,IF(AND(J43="NO",L43>0),100%-(L43/K43))))) ->  | N43: =+IF(M43="",0,IF(M43<=10%,0,((M43-10%)*10/90)*100)) -> 0
C44: =+IF(C43="","",IF(AND(C43>0,D43=0),"NO ES OCUPACIÓN EN FAMILIA INFRARREPRESENTADA","")) -> 

Sheet Hoja1 (hidden)
C3: X | J3: ENCUESTAS | K3: CENTRO NUEVO | L3: PERSONAS 75% | M3: PERSONAS INSERTADAS | N3: PERSONAS CONCEDIDAS | O3: PERSONAS CONCEDIDAD POR TRES | P3: CONTRATOS ALTERNANCIA | Q3: SUBVENCIÓN CONCEDIDA | R3: SUBVENCIÓN ABONADA | S3: HORAS CONCEDIDAS | T3: HORAS EJECUTADAS | U3: PLAN DE IGUALDAD
A4: ACTIVIDADES FÍSICAS Y DEPORTIVAS (AFD) | C4: Sin especificar | D4: Actividades Físicas y Deportivas | E4: AFD | F4: 10.85 | H4: ACCIÓN LABORAL | I4: V09409749 | J4: 3.47 | K4: NO | L4: 21 | M4: 10 | N4: 23 | O4: =+N4*3 -> 69 | P4: 46.49 | Q4: 167475.23 | R4: 138262.12 | S4: 520 | T4: 520 | U4: SÍ
A5: ADMINISTRACIÓN Y GESTIÓN (ADG) | C5: 1 | D5: Administración y Gestión | E5: ADG | F5: 9.88 | H5: ÁCTIMA CONSULTORÍA DE RECURSOS HUMANOS, S.L. | I5: B31816689 | J5: 3.7 | K5: NO | L5: 12 | M5: 8 | N5: 13 | O5: =+N5*3 -> 39 | P5: 39 | Q5: 90912.042 | R5: 90912.042 | S5: 200 | T5: 200 | U5: Lea la etiqueta referente a plan de igualdad registrado .
A6: AGRARIA (AGR) | C6: 2 | D6: Agraria | E6: AGA | F6: 12.6 | H6: AGEFOR FORMACIÓN | I6: B71448724 | J6: 3.87 | K6: NO | L6: 40 | M6: 14 | N6: 44 | O6: 132 | P6: 82.98 | Q6: 317319.45 | R6: 266844.77 | S6: 737 | T6: 737 | U6: Lea la etiqueta referente a plan de igualdad registrado .
A7: ARTES GRÁFICAS (ARG) | C7: 3 | D7: Arte y Artesanías | E7: ART | F7: 11.8 | H7: ASPACE | I7: G31077050 | J7: 3.99 | K7: NO | L7: 9 | M7: 4 | N7: 10 | O7: 30 | P7: 28.69 | Q7: 82018.3 | R7: 80431.3405 | S7: 290 | T7: 290 | U7: Lea la etiqueta referente a plan de igualdad registrado .
A8: ARTE Y ARTESANÍAS (ART) | C8: 4 | D8: Artes Gráficas | E8: ARG | F8: 11.8 | H8: ANTRV | I8: G31084635 | J8: 3.94 | K8: NO | L8: 12 | M8: 9 | N8: 11 | O8: 33 | P8: 28.74 | Q8: 87070.2 | R8: 83817.5134 | S8: 339 | T8: 339 | U8: SÍ
A9: COMERCIO Y MARKETING (COM) | C9: NO ZONAL | D9: Comercio y Marketing | E9: COM | F9: 9.89 | H9: ASOCIACIÓN NAVARRA SOCIAL | I9: G71357750 | J9: 3.21 | K9: NO | L9: 13 | M9: 5 | N9: 15 | O9: 45 | P9: 29.31 | Q9: 94172.16 | R9: 77777.5885 | S9: 195 | T9: 195 | U9: Lea la etiqueta referente a plan de igualdad registrado .
A10: EDIFICACIÓN Y OBRA CIVIL (EOC) | C10: ALTSASU / ALSASUA | D10: Edificación y Obra Civil | E10: EOC | F10: 12.17 | H10: ASOCIACION POSTHAC - ENTIDAD SOCIAL POR EL EMPLEO | I10: G71329221 | J10: 3.64 | K10: NO | L10: 24 | M10: 8 | N10: 30 | O10: 90 | P10: 59.37 | Q10: 187327.17 | R10: 149398.82 | S10: 385 | T10: 385 | U10: Lea la etiqueta referente a plan de igualdad registrado .
A11: ELECTRICIDAD Y ELECTRÓNICA (ELE) | C11: AOIZ / AGOITZ | D11: Electricidad y Electrónica | E11: ELE | F11: 11 | H11: FC FORMACIÓN CONTINUA, S.I. | I11: E71070064 | J11: 3.79 | K11: NO | L11: 29 | M11: 18 | N11: 30 | O11: 90 | P11: 54.26 | Q11: 193367.19 | R11: 155537.17 | S11: 396 | T11: 396 | U11: Lea la etiqueta referente a plan de igualdad registrado .
A12: ENERGÍA Y AGUA (ENA) | C12: DONEZTEBE / SANTESTEBAN | D12: Energía y Agua | E12: ENA | F12: 11.29 | H12: FORMACIÓN SOCIAL NAVARRA, S.L. | I12: B71404834 | J12: 2.89 | K12: NO | L12: 15 | M12: 6 | N12: 15 | O12: =+N12*3 -> 45 | P12: 24 | Q12: 102216.75 | R12: 80258.48 | S12: 250 | T12: 250 | U12: Lea la etiqueta referente a plan de igualdad registrado .
A13: FABRICACIÓN MECÁNICA (FME) | C13: ESTELLA-LIZARRA | D13: Fabricación Mecánica | E13: FME | F13: 12.35 | H13: FUNDACIÓN ELKARTE | I13: G31830417 | J13: 3.63 | K13: NO | L13: 10 | M13: 5 | N13: 10 | O13: 30 | P13: 24.67 | Q13: 79585.98 | R13: 70640.6715 | S13: 274 | T13: 274 | U13: SÍ
A14: HOSTELERÍA Y TURISMO (HOT) | C14: LODOSA | D14: Hostelería y Turismo | E14: HOT | F14: 12.02 | H14: FUNDACIÓN KOINE AEQUALITAS | I14: G83496000 | J14: 3.25 | K14: NO | L14: 26 | M14: 8 | N14: 30 | O14: 90 | P14: 70.89 | Q14: 206185.83 | R14: 171450.21 | S14: 449 | T14: 449 | U14: Lea la etiqueta referente a plan de igualdad registrado .
A15: IMAGEN PERSONAL (IMP) | C15: TAFALLA | D15: Imagen Personal | E15: IMP | F15: 12.77 | H15: FUNDACIÓN LABORAL DE LA COSTRUCCIÓN | I15: G80468416 | J15: 3.49 | K15: NO | L15: 54 | M15: 13 | N15: 68 | O15: 204 | P15: 127.97 | Q15: 497914.79 | R15: 391061.16 | S15: 1230 | T15: 1230 | U15: SÍ
A16: IMAGEN Y SONIDO (IMS) | C16: TUDELA | D16: Imagen y Sonido | E16: IMS | F16: 12.35 | H16: GABINETE DE RECOLOCACIÓN INDUSTRIAL, S.L. | I16: B09390105 | J16: 3.15 | K16: NO | L16: 52 | M16: 12 | N16: 60 | O16: 180 | P16: 105.38 | Q16: 410689.77 | R16: 321381.36 | S16: 870 | T16: 870 | U16: SÍ
A17: INDUSTRIAS ALIMENTARIAS (INA) | C17: PERSONAS CON DISCAPACIDAD | D17: Industrias Alimentarias | E17: INA | F17: 13.5 | H17: NAFORLAN NAVARRA DE FORMACIÓN Y EMPLEO, S.L. | I17: B71364194 | J17: 3.68 | K17: NO | L17: 14 | M17: 4 | N17: 15 | O17: 45 | P17: 30 | Q17: 97614.88 | R17: 81356.46 | S17: 230 | T17: 230 | U17: Lea la etiqueta referente a plan de igualdad registrado .
A18: INDUSTRIAS EXTRACTIVAS (IEX) | D18: Industrias Extractivas | E18: IEX | F18: 12.17 | H18: RODOIA 2000, S.L. | I18: B48933618 | J18: 3.68 | K18: NO | L18: 38 | M18: 18 | N18: 45 | O18: 135 | P18: 82.41 | Q18: 332856.15 | R18: 286211.55 | S18: 835 | T18: 835 | U18: Lea la etiqueta referente a plan de igualdad registrado .
A19: INFORMÁTICA Y COMUNICACIONES (IFC) | D19: Informática y Comunicaciones | E19: IFC | F19: 9.88 | H19: Media | J19: 0 | K19: NO | L19: 0 | M19: 0 | N19: 0 | O19: 0 | P19: 0 | S19: 0 | T19: 0
A20: INSTALACIÓN Y MANTENIMIENTO (IMA) | C20: SÍ | D20: Instalación y Mantenimiento | E20: IMA | F20: 11.49 | I20: PUNTOS | L20: =+SUM(L4:L18) -> 369 | M20: 142 | N20: =+SUM(N4:N18) -> 419 | O20: =+SUM(O4:O18) -> 1257 | P20: =+SUM(P4:P18) -> 834.16
A21: MADERA, MUEBLE Y CORCHO (MAM) | C21: NO | D21: Madera, Mueble y Corcho | E21: MAM | F21: 12.17 | I21: 3.54 | L21: =+M20/L20 -> 0.3848238482 | O21: =+P20/O20 -> 0.6636117741
A22: MARÍTIMO PESQUERA (MAP) | D22: Química | E22: QUI | F22: 10.71 | I22: =IF(AND(I21>=3,J21<=4),(I21-3)*15,IF(I21<3,0)) -> 8.1 | J22: =+I22*0.75 -> 6.075 | L22: =+L21 -> 0.3848238482 | M22: =+IF(I22="",0,IF(AND(I22="SÍ",L22=0%),Hoja1!N12,IF(L22<10%,0,IF(L22=10%,2,IF(AND(L22>10%,L22<=90%),((((L22-10%)*13/80))*100)+2,IF(L22>90%,15)))))) -> 6.628387534 | O22: =+O21 -> 0.6636117741 | P22: =+IF(O22="",0,IF(AND(L22="SÍ",O22=0%),Hoja1!AA8,IF(O22=0,0,IF(O22<10%,0,IF(O22=10%,1,IF(AND(O22>=10%,O22<=90%),((((O22-10%)*19/80))*100)+1,IF(O22>90%,20))))))) -> 14.38577963
A23: QUÍMICA (QUI) | D23: Sanidad | E23: SAN | F23: 11.97 | L23: 0.75 | M23: =+M22*0.75 -> 4.97129065 | O23: 0.75 | P23: =+P22*0.75 -> 10.78933473
A24: SANIDAD (SAN) | D24: Seguridad y Medio Ambiente | E24: SEA | F24: 10.71
A25: SEGURIDAD Y MEDIO AMBIENTE (SEA) | D25: Servicios Cocioculturales y a la Comunidad | E25: SSC | F25: 10.71
A26: SERVICIOS SOCIOCULTURALES Y A LA COMUNIDAD (SSC) | D26: Textil, Confección y Piel | E26: TCP | F26: 12.35
A27: TÉXTIL, CONFECCIÓN Y PIEL (TCP) | D27: Transporte y Mantenimiento de Vehículos | E27: TMV | F27: 12.47
A28: TRANSPORTE Y MANTENIMIENTO DE VEHÍCULOS (TMV) | D28: Competencias transversales | E28: CTR | F28: 9.88
A29: VIDRIO Y CERÁMICA (VIC) | D29: Formación complementaria | E29: FCO | F29: 9.88

Sheet Usuarios (hidden)
A1: DNI | B1: CONTRASEÑA | C1: CENTRO
A2: V09409749 | B2: 10AF | C2: ACCIÓN LABORAL
A3: B31816689 | B3: 15KI | C3: ÁCTIMA CONSULTORÍA DE RECURSOS HUMANOS, S.L.
A4: B71448724 | B4: 20PA | C4: AGEFOR FORMACIÓN
A5: G31077050 | B5: 25LA | C5: ASPACE
A6: G31084635 | B6: 30MU | C6: ANTRV
A7: G71357750 | B7: 35HS | C7: ASOCIACIÓN NAVARRA SOCIAL
A8: G71329221 | B8: 40TE | C8: ASOCIACION POSTHAC - ENTIDAD SOCIAL POR EL EMPLEO
A9: E71070064 | B9: 45AD | C9: FC FORMACIÓN CONTINUA, S.I.
A10: B71404834 | B10: 50NC | C10: FORMACIÓN SOCIAL NAVARRA, S.L.
A11: G31830417 | B11: 55KM | C11: FUNDACIÓN ELKARTE
A12: G83496000 | B12: 60SE | C12: FUNDACIÓN KOINE AEQUALITAS
A13: G80468416 | B13: 65BU | C13: FUNDACIÓN LABORAL DE LA COSTRUCCIÓN
A14: B09390105 | B14: 70LF | C14: GABINETE DE RECOLOCACIÓN INDUSTRIAL, S.L.
A15: B71364194 | B15: 75JP | C15: NAFORLAN NAVARRA DE FORMACIÓN Y EMPLEO, S.L.
A16: B48933618 | B16: 80ZD | C16: RODOIA 2000, S.L.
